[Event "4th Batumi Cup 2018"]
[Site "Batumi"]
[Date "2018.07.06"]
[Round "5"]
[White "Sattarov, Bobir"]
[Black "Eynullayev, Altay"]
[Result "1-0"]
[ECO "C00"]
[WhiteElo "2328"]
[BlackElo "2134"]
[Annotator "NA"]
[PlyCount "103"]
[EventDate "2018.07.03"]
[EventType "swiss"]
[EventCountry "GEO"]
[SourceTitle "playchess.com"]
[Source "ChessBase"]
[SourceQuality "1"]
[TimeControl "40/5400+30:1800+30"]

1. e4 {[%emt 0:00:00]} e6 {[%emt 0:00:00]} 2. Qe2 {[%emt 0:00:55]} c5 {[%emt 0:00:00]} 3. Nf3 {[%emt 0:00:07]} Nc6 {[%emt 0:00:53]} 4. g3 {[%emt 0:00:07]} g6 {[%emt 0:00:05]} 5. Bg2 {[%emt 0:00:06]} Bg7 {[%emt 0:00:06]} 6. O-O {[%emt 0:00:16]} Nge7 {[%emt 0:00:31]} 7. c3 {[%emt 0:05:12]} O-O {[%emt 0:01:35]} 8. d3 {[%emt 0:01:16]} d6 {[%emt 0:04:21]} 9. Rd1 {[%emt 0:01:21] C00: French: Unusual White 2nd moves} (9. a3 b5 10. b4 cxb4 11. axb4 a5 12. Bb2 Bd7 13. Na3 Qb6 14. bxa5 Rxa5 15. c4 b4 16. Nb5 Rfa8 17. Bxg7 Kxg7 {½-½ (53) Bauer,C (2628)-Prusikin,M (2512) Switzerland 2018}) 9... e5 {[%emt 0:03:03]} 10. a3 {[%emt 0:00:35] LiveBook: 8 Games} Be6 {[%emt 0:10:06]} 11. b4 {[%emt 0:00:12]} Rc8 $146 {[%emt 0:02:59]} ({Predecessor:} 11... a6 12. Be3 cxb4 13. axb4 d5 14. Ng5 Bc8 15. exd5 Nxd5 16. Bc5 Re8 {½-½ (82) Peptan,C (2422)-Nguyen,T (2307) Tromsoe 2014}) 12. Bb2 {[%emt 0:00:09]} Qc7 {[%emt 0:14:57]} 13. Nbd2 {[%emt 0:00:18]} a6 {[%emt 0:02:16]} 14. Rac1 {[%emt 0:00:24]} b5 {[%emt 0:04:08]} 15. Nf1 {[%emt 0:05:08]} Rfe8 {[%emt 0:03:43]} 16. Ne3 {[%emt 0:04:25]} h6 {[%emt 0:03:28]} 17. Qd2 {[%emt 0:06:39]} Qb6 {[%emt 0:03:33]} 18. h4 {[%emt 0:03:31]} a5 {[%emt 0:03:39]} 19. h5 {[%emt 0:01:22]} axb4 {[%emt 0:06:00]} 20. axb4 {[%emt 0:00:10]} cxb4 {[%emt 0:02:22]} 21. hxg6 {[%emt 0:00:06]} fxg6 {[%emt 0:00:07]} 22. cxb4 {[%emt 0:00:05]} Nd4 {[%emt 0:00:40]} 23. Nxd4 {[%emt 0:02:53]} exd4 {[%emt 0:00:13]} 24. Nd5 {[%emt 0:00:17]} Nxd5 {[%emt 0:01:20]} 25. exd5 {[%emt 0:00:02]} Bg4 {[%emt 0:01:39]} 26. Rxc8 {[%emt 0:00:22]} Rxc8 {[%emt 0:00:25]} 27. Re1 {[%emt 0:00:02]} Bf5 {[%emt 0:03:36]} 28. Be4 {[%emt 0:02:05]} Bxe4 {[%emt 0:07:49]} 29. Rxe4 {[%emt 0:00:02]} Qc7 {[%emt 0:01:45]} 30. Qe1 {[%emt 0:07:51]} Qc2 {[%emt 0:09:39]} 31. Bxd4 {[%emt 0:00:26]} Bxd4 {[%emt 0:00:53]} 32. Rxd4 {[%emt 0:00:06]} Qc1 {[%emt 0:00:09]} 33. Qxc1 {[%emt 0:01:19]} Rxc1+ {[%emt 0:00:02]} 34. Kg2 {[%emt 0:00:06]} Re1 {[%emt 0:03:25]} 35. Re4 {[%emt 0:04:36]} Rd1 $1 {[%emt 0:00:28]} 36. Re3 {[%emt 0:00:12]} Kf7 {[%emt 0:00:45]} 37. Kf3 {[%emt 0:00:13]} Rd2 {[%emt 0:00:26]} 38. g4 {[%emt 0:06:10]} g5 {[%emt 0:02:23]} 39. Re6 {[%emt 0:10:09]} Rxd3+ {[%emt 0:01:55]} 40. Ke4 {[%emt 0:00:00]} Rb3 {[%emt 0:00:00]} 41. Rxh6 {[%emt 0:00:44]} Rxb4+ {[%emt 0:10:47]} 42. Kf5 {[%emt 0:00:06]} Rf4+ {[%emt 0:01:43]} 43. Kxg5 {[%emt 0:00:11]} Rxf2 {[%emt 0:00:08]} 44. Rh7+ {[%emt 0:12:00]} Kf8 $2 {[%emt 0:00:53]} ({Black should try} 44... Ke8 $14) 45. Rb7 {[%emt 0:02:01]} Rb2 {[%emt 0:01:56] [#]} 46. Kf6 $1 {[%emt 0:00:54]} Ke8 $2 {[%emt 0:01:31]} (46... Rf2+ 47. Ke6 Rb2 48. Kxd6 b4) 47. g5 {[%emt 0:03:45]} Rf2+ {[%emt 0:07:24]} 48. Ke6 $18 {[%emt 0:00:11]} Re2+ {[%emt 0:01:13]} 49. Kxd6 {[%emt 0:00:06]} Rg2 {[%emt 0:00:06]} 50. Rxb5 {[%emt 0:00:13]} Rxg5 {[%emt 0:00:08]} 51. Rb8+ {[%emt 0:00:03]} Kf7 {[%emt 0:00:04]} 52. Kc6 {[%emt 0:00:04]} 1-0

[Event "4th Batumi Cup 2018"]
[Site "Batumi"]
[Date "2018.07.06"]
[Round "5"]
[White "Gvetadze, Sofio"]
[Black "Mosadeghpour, Masoud"]
[Result "0-1"]
[ECO "C47"]
[WhiteElo "2316"]
[BlackElo "2531"]
[Annotator "ChessBase"]
[PlyCount "42"]
[EventDate "2018.07.03"]
[EventType "swiss"]
[EventCountry "GEO"]
[SourceTitle "playchess.com"]
[Source "ChessBase"]
[SourceQuality "1"]
[TimeControl "40/5400+30:1800+30"]

1. e4 {[%emt 0:00:00]} e5 {[%emt 0:03:06]} 2. Nf3 {[%emt 0:00:00]} Nc6 {[%emt 0:00:03]} 3. Nc3 {[%emt 0:00:00]} Nf6 {[%emt 0:00:18]} 4. h3 {[%emt 0:00:00]} Bb4 {[%emt 0:00:46]} 5. Bd3 {[%emt 0:00:13]} d6 {[%emt 0:00:35]} 6. O-O {[%emt 0:00:30]} a6 {[%emt 0:02:14]} 7. Ne2 {[%emt 0:03:19]} g5 {[%emt 0:05:37]} 8. c3 {[%emt 0:05:24]} Bc5 {[%emt 0:02:19]} 9. Nxg5 {[%emt 0:01:27]} Rg8 {[%emt 0:01:31]} 10. Nxf7 {[%emt 0:00:36]} Kxf7 {[%emt 0:00:36]} 11. Bc4+ {[%emt 0:00:05]} d5 {[%emt 0:00:14]} 12. exd5 {[%emt 0:00:34]} Na5 {[%emt 0:00:12]} 13. d4 {[%emt 0:03:20]} Nxc4 {[%emt 0:07:30]} 14. dxc5 {[%emt 0:00:24]} Bxh3 {[%emt 0:00:04]} 15. Ng3 {[%emt 0:00:34]} Bg4 {[%emt 0:00:25]} 16. f3 {[%emt 0:03:03]} Bh3 {[%emt 0:07:24]} 17. Kf2 {[%emt 0:00:47]} Qf8 {[%emt 0:01:38]} 18. gxh3 {[%emt 0:02:56]} Qxc5+ {[%emt 0:00:18]} 19. Kg2 {[%emt 0:00:04]} Nh5 {[%emt 0:00:41]} 20. f4 {[%emt 0:00:22]} Nxg3 {[%emt 0:00:19]} 21. Rf3 {[%emt 0:00:20]} Nf1+ {[%emt 0:00:38]} 0-1

[Event "4th Batumi Cup 2018"]
[Site "Batumi"]
[Date "2018.07.06"]
[Round "5"]
[White "Garayev, Kanan"]
[Black "Pogosyan, Stefan"]
[Result "1-0"]
[ECO "E13"]
[WhiteElo "2300"]
[BlackElo "2356"]
[Annotator "NA"]
[PlyCount "63"]
[EventDate "2018.07.03"]
[EventType "swiss"]
[EventCountry "GEO"]
[SourceTitle "playchess.com"]
[Source "ChessBase"]
[SourceQuality "1"]
[TimeControl "40/5400+30:1800+30"]

1. d4 {[%emt 0:00:00]} Nf6 {[%emt 0:37:33]} 2. Nf3 {[%emt 0:00:00]} e6 {[%emt 0:00:25]} 3. c4 {[%emt 0:00:00]} b6 {[%emt 0:00:30]} 4. Nc3 {[%emt 0:03:07]} Bb4 {[%emt 0:00:08]} 5. Bg5 {[%emt 0:01:46]} h6 {[%emt 0:00:30]} 6. Bh4 {[%emt 0:00:43]} g5 {[%emt 0:00:07]} 7. Bg3 {[%emt 0:00:04]} Ne4 {[%emt 0:00:06]} 8. Qc2 {[%emt 0:01:34]} f5 {[%emt 0:00:11]} 9. e3 {[%emt 0:00:53]} Bb7 {[%emt 0:00:44] LiveBook: 53 Games} 10. Nd2 {[%emt 0:07:03] E13: Damenindisch (5.Lg5)} (10. d5 Na6 11. Be5 O-O 12. O-O-O Bxc3 13. Bxc3 Nxc3 14. Qxc3 Qf6 15. Qxf6 Rxf6 16. h4 g4 17. Ne5 exd5 18. cxd5 {½-½ (34) Moiseenko,A (2709)-Onischuk,A (2672) Antalya 2013}) 10... O-O {[%emt 0:05:15]} (10... Bxc3 $11 11. bxc3 d6) 11. f3 {[%emt 0:09:07]} Nxg3 {[%emt 0:04:16]} 12. hxg3 {[%emt 0:00:02]} Qf6 {[%emt 0:00:14]} 13. Nb5 $146 {[%emt 0:09:36]} ({Vorgänger:} 13. g4 c5 14. d5 Bxc3 15. bxc3 exd5 16. cxd5 Bxd5 17. Qxf5 Qxf5 18. gxf5 Kg7 19. e4 Bg8 20. Nc4 d5 21. Ne3 Nc6 22. Ng4 {1-0 (22) Zaitsev,A-Nikitin,Y Alma-Ata (Kazakhstan) 1969}) 13... a6 {[%emt 0:08:38]} 14. Nc3 {[%emt 0:01:14]} Bd6 {[%emt 0:07:45]} 15. f4 {[%emt 0:01:23]} c5 {[%emt 0:00:32]} 16. d5 {[%emt 0:04:13]} b5 {[%emt 0:08:43]} 17. O-O-O {[%emt 0:02:47]} exd5 {[%emt 0:03:09]} 18. cxd5 {[%emt 0:03:56]} Be7 {[%emt 0:03:52]} 19. e4 {[%emt 0:02:59]} gxf4 {[%emt 0:00:53]} 20. exf5 {[%emt 0:02:06]} fxg3 {[%emt 0:01:48]} 21. Rh5 {[%emt 0:04:17]} Qg7 {[%emt 0:04:23]} 22. Nde4 {[%emt 0:02:29]} Qg4 {[%emt 0:01:47]} 23. Be2 {[%emt 0:01:05]} Qf4+ {[%emt 0:00:53]} 24. Kb1 {[%emt 0:00:01]} Rxf5 {[%emt 0:00:50]} 25. Rf1 {[%emt 0:00:28]} Qxf1+ {[%emt 0:00:24]} 26. Bxf1 {[%emt 0:00:09]} Rxh5 {[%emt 0:00:42]} 27. Nf6+ {[%emt 0:00:10]} Bxf6 {[%emt 0:00:03]} 28. Qg6+ {[%emt 0:00:06]} Bg7 {[%emt 0:00:10]} 29. Qe8+ {[%emt 0:00:13]} Bf8 {[%emt 0:00:14]} 30. Qxh5 {[%emt 0:00:10]} d6 {[%emt 0:01:25]} 31. Qg6+ {[%emt 0:00:12]} Bg7 {[%emt 0:00:06]} 32. Qe6+ $18 {[%emt 0:00:14]} (32. Qe8+ $142 Bf8 33. Bd3 Bc8 34. Qxc8 Ra7 35. Qe6+ Kh8 36. Qf6+ Kg8 37. Bf5) 1-0

[Event "4th Batumi Cup 2018"]
[Site "Batumi"]
[Date "2018.07.06"]
[Round "5"]
[White "Suleymanli Aydin"]
[Black "Levin, Evgeny A"]
[Result "1/2-1/2"]
[ECO "A69"]
[WhiteElo "2266"]
[BlackElo "2539"]
[Annotator "RC"]
[PlyCount "50"]
[EventDate "2018.07.03"]
[EventType "swiss"]
[EventCountry "GEO"]
[SourceTitle "playchess.com"]
[Source "ChessBase"]
[SourceQuality "1"]
[TimeControl "40/5400+30:1800+30"]

1. d4 {[%emt 0:00:00]} Nf6 {[%emt 0:01:09]} 2. c4 {[%emt 0:00:00]} g6 {[%emt 0:00:05]} 3. Nc3 {[%emt 0:00:00]} Bg7 {[%emt 0:00:08]} 4. e4 {[%emt 0:00:00]} d6 {[%emt 0:00:05]} 5. f4 {[%emt 0:00:00]} O-O {[%emt 0:00:06]} 6. Nf3 {[%emt 0:00:00]} c5 {[%emt 0:00:37]} 7. d5 {[%emt 0:00:00]} e6 {[%emt 0:00:05]} 8. Be2 {[%emt 0:00:02]} exd5 {[%emt 0:00:05]} 9. cxd5 {[%emt 0:00:03]} Re8 {[%emt 0:00:14]} 10. e5 {[%emt 0:00:05]} dxe5 {[%emt 0:00:07]} 11. fxe5 {[%emt 0:00:05]} Ng4 {[%emt 0:00:03]} 12. e6 {[%emt 0:00:05]} fxe6 {[%emt 0:00:20]} 13. d6 {[%emt 0:00:03]} Bd7 {[%emt 0:01:22]} 14. O-O {[%emt 0:09:01]} Qb6 {[%emt 0:04:13]} 15. Kh1 {[%emt 0:14:19]} Nc6 {[%emt 0:04:23]} 16. Na4 {[%emt 0:14:22]} Qa5 {[%emt 0:00:53]} 17. Bd2 {[%emt 0:01:29]} Nb4 {[%emt 0:01:41]} 18. Nc3 {[%emt 0:00:27]} Qb6 {[%emt 0:01:48]} 19. Bg5 {[%emt 0:01:43]} c4 {[%emt 0:30:43]} 20. Qd2 {[%emt 0:08:37]} h6 {[%emt 0:06:15]} 21. Bf4 {[%emt 0:02:39]} g5 {[%emt 0:02:13]} 22. Bxg5 {[%emt 0:32:48]} hxg5 {[%emt 0:13:36]} 23. Qxg5 {[%emt 0:00:48]} Nc2 {[%emt 0:01:10]} 24. Qxg4 {[%emt 0:14:51]} Nxa1 {[%emt 0:02:27]} 25. Ne5 {[%emt 0:00:25]} Qxd6 {[%emt 0:12:07]} 1/2-1/2

[Event "4th Batumi Cup 2018"]
[Site "Batumi"]
[Date "2018.07.06"]
[Round "5"]
[White "Mammadova, Narmin"]
[Black "Chkhaidze, Nikoloz"]
[Result "1/2-1/2"]
[ECO "C48"]
[WhiteElo "2209"]
[BlackElo "2337"]
[Annotator "NA"]
[PlyCount "108"]
[EventDate "2018.07.03"]
[EventType "swiss"]
[EventCountry "GEO"]
[SourceTitle "playchess.com"]
[Source "ChessBase"]
[SourceQuality "1"]
[TimeControl "40/5400+30:1800+30"]

1. e4 {[%emt 0:00:00]} e5 {[%emt 0:00:00]} 2. Nf3 {[%emt 0:00:00]} Nc6 {[%emt 0:00:00]} 3. Nc3 {[%emt 0:00:28]} Nf6 {[%emt 0:00:00]} 4. Bb5 {[%emt 0:00:52]} Nd4 {[%emt 0:00:02]} 5. Ba4 {[%emt 0:02:36]} Nxf3+ {[%emt 0:01:12]} 6. Qxf3 {[%emt 0:00:10]} Bc5 {[%emt 0:00:45]} 7. O-O {[%emt 0:02:03]} O-O {[%emt 0:00:34]} 8. d3 {[%emt 0:01:15]} c6 {[%emt 0:00:44]} 9. Bb3 {[%emt 0:01:32] C48: Four Knights: 4 Bb5, replies other than 4...Bb4} b5 {[%emt 0:02:13]} (9... a5 10. a4 d6 11. Kh1 Be6 12. Bxe6 fxe6 13. Qh3 Qe8 14. f3 Qf7 15. Ne2 Rae8 16. Bd2 Bb6 {1-0 (68) Firman,N (2525)-Balogh,C (2616) Germany 2009}) 10. a3 {[%emt 0:10:32]} d6 {[%emt 0:00:41]} 11. h3 $146 {[%emt 0:00:05]} ({Predecessor:} 11. Be3 Bd4 12. h3 Bb6 13. Bg5 Be6 14. Bxf6 Qxf6 15. Qxf6 gxf6 16. g4 Bd4 {½-½ (48) Arias Rodriguez,S-Corredor Pravia,M Asturias 1993}) 11... Be6 {[%emt 0:00:38]} 12. Ne2 {[%emt 0:02:07]} Bxb3 {[%emt 0:09:10]} 13. cxb3 {[%emt 0:00:03]} Ne8 {[%emt 0:04:19]} 14. Ng3 {[%emt 0:02:49]} Nc7 {[%emt 0:00:14]} 15. Nf5 {[%emt 0:01:58]} Ne6 {[%emt 0:00:20]} 16. b4 {[%emt 0:04:36]} Bd4 {[%emt 0:06:15]} 17. Kh1 {[%emt 0:05:59]} Kh8 {[%emt 0:13:05]} 18. Qg4 {[%emt 0:02:42]} g6 {[%emt 0:03:37]} 19. Nxd4 {[%emt 0:08:00]} Nxd4 {[%emt 0:02:17]} 20. Bg5 {[%emt 0:04:50]} f6 {[%emt 0:00:39]} 21. Be3 {[%emt 0:00:44]} f5 {[%emt 0:10:23]} 22. exf5 {[%emt 0:02:27]} Nxf5 {[%emt 0:08:02]} 23. d4 {[%emt 0:06:07]} Qe8 {[%emt 0:00:35]} 24. Qe4 {[%emt 0:12:44]} exd4 {[%emt 0:01:33]} 25. Bxd4+ {[%emt 0:00:20]} Kg8 {[%emt 0:00:07]} 26. Qd3 {[%emt 0:01:13]} Qf7 {[%emt 0:00:20]} 27. Bc3 {[%emt 0:01:14]} Qc4 {[%emt 0:01:27]} 28. Rad1 {[%emt 0:09:15]} Qxd3 {[%emt 0:00:27]} 29. Rxd3 {[%emt 0:00:01]} Rae8 {[%emt 0:00:26]} 30. Kg1 {[%emt 0:02:29]} Re6 {[%emt 0:00:08]} 31. g4 {[%emt 0:05:54]} Ne7 {[%emt 0:00:29]} 32. Re1 {[%emt 0:04:24]} Rxe1+ {[%emt 0:00:19]} 33. Bxe1 {[%emt 0:00:01]} Nd5 {[%emt 0:00:06]} 34. Bd2 {[%emt 0:01:08]} Re8 {[%emt 0:00:08]} 35. Be3 {[%emt 0:00:58]} Nxe3 {[%emt 0:05:25]} 36. fxe3 {[%emt 0:00:09]} d5 {[%emt 0:00:10]} 37. Kf2 {[%emt 0:00:30]} Kf7 {[%emt 0:00:19]} 38. Rc3 {[%emt 0:02:08]} Re6 {[%emt 0:00:17]} 39. Kf3 {[%emt 0:01:21]} Kf6 {[%emt 0:01:04]} 40. h4 {[%emt 0:00:00]} Ke5 {[%emt 0:00:00]} 41. g5 {[%emt 0:06:39]} Kd6 {[%emt 0:01:59]} 42. Rd3 {[%emt 0:01:31]} Re5 {[%emt 0:03:44]} 43. Rd4 {[%emt 0:03:06]} Rf5+ {[%emt 0:01:06]} 44. Ke2 {[%emt 0:00:04]} Rf8 {[%emt 0:03:55]} 45. Rd1 {[%emt 0:02:10]} Rf7 {[%emt 0:04:42]} 46. Rd4 {[%emt 0:04:25]} Rf5 {[%emt 0:00:21]} 47. Rd1 {[%emt 0:02:18]} h6 {[%emt 0:02:56]} 48. gxh6 {[%emt 0:01:05]} Rh5 {[%emt 0:00:04]} 49. Rg1 {[%emt 0:00:48]} Rxh6 {[%emt 0:00:04]} 50. Rg4 {[%emt 0:02:08]} Ke5 {[%emt 0:00:14]} 51. Kd3 {[%emt 0:00:15]} Kf5 {[%emt 0:02:04]} 52. Rf4+ {[%emt 0:00:38]} Ke5 {[%emt 0:00:15]} 53. Rg4 $11 {[%emt 0:00:51]} Kf5 {[%emt 0:00:08]} 54. Rf4+ {[%emt 0:00:01]} Ke5 {[%emt 0:00:16] Ke4+*} 1/2-1/2

[Event "4th Batumi Cup 2018"]
[Site "Batumi"]
[Date "2018.07.06"]
[Round "5"]
[White "Khalaji, Hanieh"]
[Black "Martynyuk, Elizaveta"]
[Result "1-0"]
[ECO "B22"]
[WhiteElo "2146"]
[BlackElo "2182"]
[Annotator "NA"]
[PlyCount "79"]
[EventDate "2018.07.03"]
[EventType "swiss"]
[EventCountry "GEO"]
[SourceTitle "playchess.com"]
[Source "ChessBase"]
[SourceQuality "1"]
[TimeControl "40/5400+30:1800+30"]

1. e4 {[%emt 0:01:07]} c5 {[%emt 0:00:26]} 2. c3 {[%emt 0:00:15]} Nf6 {[%emt 0:00:10]} 3. e5 {[%emt 0:01:01]} Nd5 {[%emt 0:00:01]} 4. d4 {[%emt 0:00:09]} cxd4 {[%emt 0:00:15]} 5. cxd4 {[%emt 0:00:09]} Nc6 {[%emt 0:00:24]} 6. Nc3 {[%emt 0:00:34]} Nxc3 {[%emt 0:00:33]} 7. bxc3 {[%emt 0:00:05]} d5 {[%emt 0:00:09] B22: Sicilian: 2 c3} (7... d6 8. f4 e6 9. Nf3 Be7 10. Bd3 b6 11. O-O Bb7 12. f5 exf5 13. Bxf5 dxe5 14. d5 Bc5+ 15. Kh1 {0-1 (38) Sveshnikov,V (2377)-Kovalenko,I (2636) Olaine 2017}) 8. Bd3 {[%emt 0:00:55]} a6 {[%emt 0:00:30]} 9. Ne2 {[%emt 0:10:04]} Bg4 {[%emt 0:00:16]} 10. f3 $146 {[%emt 0:00:59]} ({Predecessor:} 10. O-O e6 11. f4 b5 12. f5 Be7 13. h3 Bxf5 14. Bxf5 exf5 15. Rxf5 {1-0 (26) Pooth,R (1769)-Kunath,W (1798) Templin 2004}) 10... Bh5 {[%emt 0:00:14]} 11. Nf4 {[%emt 0:01:36]} Bg6 {[%emt 0:01:33]} 12. Bxg6 {[%emt 0:10:55]} hxg6 {[%emt 0:00:06]} 13. e6 {[%emt 0:01:35]} g5 {[%emt 0:03:27]} 14. exf7+ {[%emt 0:00:54]} Kxf7 {[%emt 0:00:07]} 15. Nh3 {[%emt 0:00:22]} Qd6 {[%emt 0:03:04]} 16. Nxg5+ {[%emt 0:02:45]} Kg8 {[%emt 0:00:15]} 17. f4 {[%emt 0:01:44]} e6 {[%emt 0:02:09]} 18. Qg4 {[%emt 0:05:00]} Re8 {[%emt 0:04:36]} 19. O-O {[%emt 0:00:48]} Nd8 {[%emt 0:04:42]} 20. Re1 {[%emt 0:06:07]} Be7 {[%emt 0:00:34]} 21. Nf3 {[%emt 0:01:41]} ({Stronger than} 21. Nxe6 Bf6 $11) 21... Bf6 {[%emt 0:00:25]} 22. f5 {[%emt 0:03:16]} e5 {[%emt 0:05:44]} 23. dxe5 {[%emt 0:01:24]} Bxe5 {[%emt 0:03:13]} 24. Nxe5 {[%emt 0:00:34]} Rxe5 {[%emt 0:00:09]} 25. Bf4 {[%emt 0:00:26]} Qc5+ {[%emt 0:06:26]} 26. Kh1 {[%emt 0:00:11]} Rxe1+ {[%emt 0:00:40]} 27. Rxe1 {[%emt 0:00:05]} Kf8 {[%emt 0:00:33]} 28. Qg6 {[%emt 0:00:12]} Nf7 {[%emt 0:01:05]} 29. Qe6 {[%emt 0:05:23]} Qc6 {[%emt 0:00:55]} 30. Qe7+ {[%emt 0:04:00]} Kg8 {[%emt 0:00:05]} 31. Qe8+ {[%emt 0:14:54]} Qxe8 {[%emt 0:00:07]} 32. Rxe8+ {[%emt 0:00:03]} Kh7 {[%emt 0:00:16]} 33. Re7 {[%emt 0:00:30]} Nh6 $18 {[%emt 0:00:27]} 34. f6 {[%emt 0:00:33]} Nf5 {[%emt 0:00:15]} 35. Rxb7 {[%emt 0:01:15]} Rc8 {[%emt 0:00:07]} 36. g4 {[%emt 0:00:41]} Rc4 {[%emt 0:03:32]} 37. Bb8 {[%emt 0:04:53]} Ne3 {[%emt 0:01:02]} 38. f7 {[%emt 0:01:21]} Rxc3 {[%emt 0:00:29]} 39. Rc7 {[%emt 0:00:49]} Rd3 {[%emt 0:10:00]} 40. Rc1 {[%emt 0:00:00]} 1-0

[Event "4th Batumi Cup 2018"]
[Site "Batumi"]
[Date "2018.07.06"]
[Round "5"]
[White "Stepanyan, Eva"]
[Black "Tereladze, Sopiko"]
[Result "1/2-1/2"]
[ECO "C77"]
[WhiteElo "2096"]
[BlackElo "2169"]
[Annotator "NA"]
[PlyCount "54"]
[EventDate "2018.07.03"]
[EventType "swiss"]
[EventCountry "GEO"]
[SourceTitle "playchess.com"]
[Source "ChessBase"]
[SourceQuality "1"]
[TimeControl "40/5400+30:1800+30"]

1. e4 {[%emt 0:00:00]} e5 {[%emt 0:06:30]} 2. Nf3 {[%emt 0:00:00]} Nc6 {[%emt 0:02:31]} 3. Bb5 {[%emt 0:00:00]} a6 {[%emt 0:00:27]} 4. Ba4 {[%emt 0:00:00]} Nf6 {[%emt 0:00:10]} 5. d3 {[%emt 0:00:08]} b5 {[%emt 0:00:16]} 6. Bb3 {[%emt 0:00:07]} Be7 {[%emt 0:00:10]} 7. O-O {[%emt 0:00:25]} O-O {[%emt 0:00:15]} 8. Nc3 {[%emt 0:00:34]} d6 {[%emt 0:02:56]} 9. a3 {[%emt 0:00:13]} Na5 {[%emt 0:08:40] LiveBook: 131 Games C77: Ruy Lopez: 3...a6 4 Ba4 Nf6, unusual lines} 10. Ba2 {[%emt 0:01:38]} Be6 {[%emt 0:08:52]} 11. Bg5 {[%emt 0:11:48]} (11. b4 Bxa2 12. Rxa2 Nc6 13. Bg5 Ng4 14. Bd2 Nf6 15. Bg5 Ng4 16. Bd2 Nf6 17. Bg5 {½-½ (17) Vachier Lagrave,M (2789)-Carlsen,M (2843) Stavanger 2018}) 11... Bxa2 {[%emt 0:01:57]} 12. Rxa2 {[%emt 0:00:15]} h6 $146 {[%emt 0:02:03]} ({Predecessor:} 12... Nc6 13. a4 b4 14. Bxf6 Bxf6 15. Nd5 g6 16. c3 bxc3 17. bxc3 {½-½ (26) Predke,A (2533)-Motylev,A (2648) Sochi 2015}) 13. Bd2 {[%emt 0:00:59]} ({Besser ist} 13. Bxf6 $14 Bxf6 14. a4) 13... c5 {[%emt 0:00:43]} 14. Ra1 {[%emt 0:02:13]} Nc6 {[%emt 0:00:16]} 15. Re1 {[%emt 0:01:32]} Re8 {[%emt 0:01:16]} 16. Nd5 {[%emt 0:03:25]} Bf8 {[%emt 0:03:02]} 17. b4 {[%emt 0:04:31]} Nd4 {[%emt 0:20:20]} 18. bxc5 {[%emt 0:02:51]} Nxf3+ {[%emt 0:02:58]} 19. Qxf3 {[%emt 0:00:11]} Nxd5 {[%emt 0:00:13]} 20. exd5 {[%emt 0:00:12]} dxc5 {[%emt 0:00:10]} 21. c4 {[%emt 0:00:29]} b4 {[%emt 0:02:37]} 22. Qg3 {[%emt 0:02:50]} Qf6 {[%emt 0:02:24]} 23. Re4 {[%emt 0:03:57]} Bd6 {[%emt 0:02:30]} 24. a4 {[%emt 0:03:50]} Kh7 {[%emt 0:03:25]} 25. Bc1 {[%emt 0:01:41]} Qf5 {[%emt 0:14:08]} 26. Bb2 $15 {[%emt 0:01:04]} f6 {[%emt 0:00:31]} 27. Qh4 {[%emt 0:06:16]} Qg5 {[%emt 0:01:34]} 1/2-1/2

[Event "4th Batumi Cup 2018"]
[Site "Batumi"]
[Date "2018.07.06"]
[Round "5"]
[White "Al Hosani, Omran"]
[Black "Lomsadze, Davit"]
[Result "0-1"]
[ECO "A48"]
[WhiteElo "2089"]
[BlackElo "2348"]
[Annotator "NA"]
[PlyCount "54"]
[EventDate "2018.07.03"]
[EventType "swiss"]
[EventCountry "GEO"]
[SourceTitle "playchess.com"]
[Source "ChessBase"]
[SourceQuality "1"]
[TimeControl "40/5400+30:1800+30"]

1. d4 {[%emt 0:00:00]} Nf6 {[%emt 0:00:00]} 2. Nf3 {[%emt 0:00:00]} g6 {[%emt 0:00:00]} 3. Bf4 {[%emt 0:00:01]} Bg7 {[%emt 0:00:00]} 4. e3 {[%emt 0:00:11]} O-O {[%emt 0:00:00]} 5. Be2 {[%emt 0:00:05]} d6 {[%emt 0:00:00]} 6. h3 {[%emt 0:00:40]} c5 {[%emt 0:02:03]} 7. c3 {[%emt 0:01:43]} b6 {[%emt 0:01:08]} 8. O-O {[%emt 0:00:10]} Bb7 {[%emt 0:00:03]} 9. Nbd2 {[%emt 0:05:08]} Nbd7 {[%emt 0:00:35]} 10. Qc2 {[%emt 0:02:58]} Rc8 {[%emt 0:02:27] LiveBook: 5 Games A48: 1 d4 Nf6 2 Nf3 g6: Torre, London and Colle Systems} 11. a4 {[%emt 0:00:15]} a6 {[%emt 0:00:41]} 12. Qd3 {[%emt 0:01:12]} (12. Rfd1 Rc7 13. e4 cxd4 14. Nxd4 e5 15. Bg3 exd4 16. Bxd6 dxc3 17. bxc3 Re8 18. Bxc7 Qxc7 19. f3 Nh5 20. Bc4 Nf4 21. Qb3 Ne5 22. Bd5 Qc5+ 23. Kh1 Bxd5 24. exd5 Qf2 {0-1 (24) Rombaldoni,D (2481)-Dvirnyy,D (2537) Chianciano Terme 2018}) 12... Re8 {[%emt 0:07:49]} 13. e4 $146 {[%emt 0:06:43]} ({Predecessor:} 13. Nc4 Be4 14. Qd1 cxd4 15. exd4 Bxf3 16. gxf3 Nh5 17. Bxd6 exd6 18. Nxd6 Qg5+ 19. Kh1 Nf4 20. Rg1 Qh4 21. Qf1 Nxh3 22. Rg4 Nxf2+ 23. Kg1 Nxg4 24. fxg4 Qg3+ {0-1 (24) Lee,Z (1373)-Noor Akbar,D (1583) Penang 2013}) 13... cxd4 {[%emt 0:09:53]} 14. cxd4 {[%emt 0:00:08]} Qc7 {[%emt 0:01:23]} 15. Qb1 {[%emt 0:16:56]} Qb8 {[%emt 0:04:36]} 16. Re1 {[%emt 0:02:51]} e5 {[%emt 0:03:54]} 17. dxe5 {[%emt 0:00:23]} dxe5 {[%emt 0:00:12]} 18. Bh2 {[%emt 0:02:49]} Qd6 {[%emt 0:05:23]} 19. b4 {[%emt 0:01:51]} Bf8 {[%emt 0:03:15]} 20. b5 {[%emt 0:00:23]} a5 {[%emt 0:00:28]} 21. Nc4 {[%emt 0:03:01]} Qc5 {[%emt 0:03:48]} 22. Bd3 {[%emt 0:04:36]} Nh5 {[%emt 0:03:29]} 23. Rc1 {[%emt 0:02:23]} Nf4 {[%emt 0:05:38]} 24. Bf1 $14 {[%emt 0:21:53]} Qb4 {[%emt 0:04:39]} 25. Qxb4 {[%emt 0:01:54]} axb4 {[%emt 0:00:52]} 26. Nfxe5 {[%emt 0:02:21]} Nxe5 {[%emt 0:00:49]} 27. Bxf4 {[%emt 0:00:20]} Nxc4 {[%emt 0:00:27]} 0-1